[Event "*** MasterClass Titled Tuesday Blitz"]
[Site "Chess.com"]
[Date "2017.08.01"]
[Round "6"]
[White "grzechu96"]
[Black "GMKrikor"]
[Result "1-0"]
[WhiteElo "2414"]
[BlackElo "2501"]
[TimeControl "180+2"]
[EndTime "14:21:19 PDT"]
[Termination "grzechu96 won by resignation"]

1. e4 {[%clk 0:03:01.9]} 1... e5 {[%clk 0:03:00.8]} 2. Nf3 {[%clk 0:03:01.7]}
2... Nc6 {[%clk 0:03:02.1]} 3. Bc4 {[%clk 0:03:00.4]} 3... Bc5 {[%clk
0:03:01.8]} 4. O-O {[%clk 0:03:01.1]} 4... Nf6 {[%clk 0:03:01.3]} 5. d3 {[%clk
0:03:02.4]} 5... d6 {[%clk 0:03:00.2]} 6. c3 {[%clk 0:02:59.5]} 6... a5 {[%clk
0:02:58]} 7. Re1 {[%clk 0:02:55.6]} 7... O-O {[%clk 0:02:46.6]} 8. Nbd2 {[%clk
0:02:56.6]} 8... Ng4 {[%clk 0:02:40.8]} 9. Re2 {[%clk 0:02:56.9]} 9... Kh8
{[%clk 0:02:37.4]} 10. h3 {[%clk 0:02:58]} 10... Nh6 {[%clk 0:02:32.5]} 11. Nf1
{[%clk 0:02:59]} 11... f5 {[%clk 0:02:33.8]} 12. Bxh6 {[%clk 0:02:59.2]} 12...
gxh6 {[%clk 0:02:34.5]} 13. d4 {[%clk 0:02:57.1]} 13... exd4 {[%clk 0:02:14.4]}
14. cxd4 {[%clk 0:02:57.3]} 14... Bb6 {[%clk 0:02:14.2]} 15. e5 {[%clk
0:02:51.6]} 15... d5 {[%clk 0:01:52]} 16. Bb5 {[%clk 0:02:49.5]} 16... Ne7
{[%clk 0:01:38.4]} 17. Qd2 {[%clk 0:02:48.6]} 17... c6 {[%clk 0:01:24.2]} 18.
Bd3 {[%clk 0:02:45.6]} 18... f4 {[%clk 0:01:19.6]} 19. e6 {[%clk 0:02:44.4]}
19... Rf6 {[%clk 0:01:15.5]} 20. Rae1 {[%clk 0:02:44.2]} 20... Qd6 {[%clk
0:01:14.9]} 21. Re5 {[%clk 0:02:37.3]} 21... Bc7 {[%clk 0:00:52.7]} 22. N1h2
{[%clk 0:02:25.6]} 22... Qb4 {[%clk 0:00:49.3]} 23. R5e2 {[%clk 0:02:22.2]}
23... Qxd2 {[%clk 0:00:49.5]} 24. Nxd2 {[%clk 0:02:23.6]} 24... h5 {[%clk
0:00:45.9]} 25. Ndf3 {[%clk 0:02:19.6]} 25... a4 {[%clk 0:00:41.2]} 26. Ng5
{[%clk 0:02:02.6]} 26... h6 {[%clk 0:00:42.3]} 27. Nf7+ {[%clk 0:02:02.7]} 27...
Kg7 {[%clk 0:00:43.8]} 28. Ne5 {[%clk 0:01:59.6]} 28... Rxe6 {[%clk 0:00:34]}
29. Nhf3 {[%clk 0:01:26.1]} 29... Bd6 {[%clk 0:00:34.8]} 30. a3 {[%clk
0:01:19.5]} 30... Rf6 {[%clk 0:00:27.3]} 31. Nh4 {[%clk 0:01:18.3]} 31... Ra7
{[%clk 0:00:18.3]} 32. Neg6 {[%clk 0:01:11.7]} 32... Nxg6 {[%clk 0:00:19]} 33.
Nxg6 {[%clk 0:01:13.2]} 33... b6 {[%clk 0:00:18.3]} 34. Nh4 {[%clk 0:01:01.2]}
34... Raf7 {[%clk 0:00:16.5]} 35. Re8 {[%clk 0:01:00.7]} 35... Rf8 {[%clk
0:00:15]} 36. Kf1 {[%clk 0:00:52.7]} 36... Bd7 {[%clk 0:00:11.3]} 37. Rxf8
{[%clk 0:00:35.1]} 37... Rxf8 {[%clk 0:00:11]} 38. Bg6 {[%clk 0:00:36.4]} 38...
f3 {[%clk 0:00:09.6]} 39. Bxh5 {[%clk 0:00:34.8]} 39... fxg2+ {[%clk 0:00:10.6]}
40. Kxg2 {[%clk 0:00:36.2]} 40... Rf4 {[%clk 0:00:11.8]} 41. Nf3 {[%clk
0:00:36.9]} 41... Kf6 {[%clk 0:00:10.4]} 42. Re3 {[%clk 0:00:34.5]} 42... c5
{[%clk 0:00:08.3]} 43. dxc5 {[%clk 0:00:30.3]} 43... bxc5 {[%clk 0:00:09.7]} 44.
Be8 {[%clk 0:00:28.4]} 44... d4 {[%clk 0:00:09.9]} 45. Re1 {[%clk 0:00:29.4]}
45... Bxh3+ {[%clk 0:00:07.9]} 46. Kxh3 {[%clk 0:00:29.9]} 46... Rxf3+ {[%clk
0:00:09.6]} 47. Kg2 {[%clk 0:00:31.6]} 47... Rf5 {[%clk 0:00:08.3]} 48. Bxa4
{[%clk 0:00:29.5]} 48... c4 {[%clk 0:00:07.5]} 49. Rc1 {[%clk 0:00:28.1]} 49...
Rc5 {[%clk 0:00:07.6]} 50. Bd1 {[%clk 0:00:25.2]} 50... Be5 {[%clk 0:00:08.4]}
51. Be2 {[%clk 0:00:25.7]} 51... c3 {[%clk 0:00:04.7]} 52. bxc3 {[%clk
0:00:26.9]} 52... dxc3 {[%clk 0:00:06.3]} 53. a4 {[%clk 0:00:26.9]} 53... Bf4
{[%clk 0:00:05.7]} 54. Rc2 {[%clk 0:00:28]} 54... Bd2 {[%clk 0:00:07.1]} 55. Bd3
{[%clk 0:00:26.3]} 55... Ke5 {[%clk 0:00:08.6]} 56. Ra2 {[%clk 0:00:27.4]} 56...
Kd4 {[%clk 0:00:09.4]} 57. Bc2 {[%clk 0:00:26.9]} 57... Ra5 {[%clk 0:00:10.6]}
58. Ra1 {[%clk 0:00:26.2]} 58... Bg5 {[%clk 0:00:05.7]} 59. Rb1 {[%clk
0:00:26.5]} 59... Kc4 {[%clk 0:00:04.2]} 60. Kg3 {[%clk 0:00:26.4]} 60... Kc5
{[%clk 0:00:04.4]} 61. f4 {[%clk 0:00:27.4]} 61... Bf6 {[%clk 0:00:04.7]} 62.
Rb7 {[%clk 0:00:25.4]} 62... Kd4 {[%clk 0:00:05.1]} 63. Rf7 {[%clk 0:00:23.4]}
63... Ra6 {[%clk 0:00:05.3]} 64. Kf3 {[%clk 0:00:22]} 64... Kc5 {[%clk
0:00:06.1]} 65. Bd3 {[%clk 0:00:17.2]} 65... Rd6 {[%clk 0:00:07.3]} 66. Bc2
{[%clk 0:00:14.6]} 66... Kb4 {[%clk 0:00:08.6]} 67. Rb7+ {[%clk 0:00:14.6]}
67... Kc4 {[%clk 0:00:09.4]} 68. Ke4 {[%clk 0:00:14]} 68... Rd2 {[%clk
0:00:08.1]} 69. Bb3+ {[%clk 0:00:15]} 69... Kc5 {[%clk 0:00:08.5]} 70. a5 {[%clk
0:00:16.6]} 70... c2 {[%clk 0:00:03.3]} 71. Bxc2 {[%clk 0:00:16.7]} 71... Kc6
{[%clk 0:00:04.9]} 72. Rb6+ {[%clk 0:00:17.9]} 72... Kc5 {[%clk 0:00:05.6]} 73.
Rxf6 {[%clk 0:00:18.7]} 73... Rxc2 {[%clk 0:00:07.3]} 74. Rxh6 {[%clk 0:00:20]}
74... Ra2 {[%clk 0:00:08.3]} 75. a6 {[%clk 0:00:21.5]} 75... Kb5 {[%clk
0:00:06.1]} 76. f5 {[%clk 0:00:21.7]} 76... Re2+ {[%clk 0:00:07.4]} 77. Kd5
{[%clk 0:00:23.1]} 77... Re1 {[%clk 0:00:07.3]} 78. f6 {[%clk 0:00:23.3]} 78...
Re2 {[%clk 0:00:07.4]} 79. f7 {[%clk 0:00:24.3]} 79... Rf2 {[%clk 0:00:09]} 80.
Ke6 {[%clk 0:00:25.7]} 80... Kxa6 {[%clk 0:00:09.8]} 1-0

[Event "*** MasterClass Titled Tuesday Blitz"]
[Site "Chess.com"]
[Date "2017.08.01"]
[Round "6"]
[White "Jospem"]
[Black "LastHeroJr"]
[Result "0-1"]
[WhiteElo "2582"]
[BlackElo "2419"]
[TimeControl "180+2"]
[EndTime "14:21:36 PDT"]
[Termination "LastHeroJr won by checkmate"]

1. e4 {[%clk 0:03:01.9]} 1... e5 {[%clk 0:03:00.4]} 2. Nf3 {[%clk 0:03:02.1]}
2... Nc6 {[%clk 0:03:01.6]} 3. Bb5 {[%clk 0:03:03.5]} 3... a6 {[%clk 0:03:02.9]}
4. Ba4 {[%clk 0:03:02.7]} 4... Nf6 {[%clk 0:03:04.1]} 5. O-O {[%clk 0:03:01.2]}
5... Be7 {[%clk 0:03:04.9]} 6. d3 {[%clk 0:03:01]} 6... b5 {[%clk 0:03:03.7]} 7.
Bb3 {[%clk 0:03:01.1]} 7... d6 {[%clk 0:03:03.4]} 8. h3 {[%clk 0:02:59.6]} 8...
Na5 {[%clk 0:03:03.2]} 9. a4 {[%clk 0:02:58.1]} 9... Nxb3 {[%clk 0:03:01.1]} 10.
cxb3 {[%clk 0:03:00]} 10... Bb7 {[%clk 0:02:57.3]} 11. Na3 {[%clk 0:03:00.2]}
11... Qd7 {[%clk 0:02:54.1]} 12. Re1 {[%clk 0:02:59.8]} 12... O-O {[%clk
0:02:54.5]} 13. Bd2 {[%clk 0:02:54.7]} 13... Rfe8 {[%clk 0:02:52.8]} 14. Nc2
{[%clk 0:02:53.7]} 14... Bf8 {[%clk 0:02:50.4]} 15. Bg5 {[%clk 0:02:49.2]} 15...
Re6 {[%clk 0:02:47.3]} 16. Ne3 {[%clk 0:02:45.8]} 16... h6 {[%clk 0:02:43.1]}
17. Bh4 {[%clk 0:02:45]} 17... g6 {[%clk 0:02:26.9]} 18. Bg3 {[%clk 0:02:33.6]}
18... Bg7 {[%clk 0:02:23.2]} 19. Bh2 {[%clk 0:02:33]} 19... Qc6 {[%clk
0:02:04.9]} 20. Rc1 {[%clk 0:02:33]} 20... Qb6 {[%clk 0:02:06.2]} 21. Qd2 {[%clk
0:02:32.3]} 21... c5 {[%clk 0:02:03.4]} 22. a5 {[%clk 0:02:31.6]} 22... Qd8
{[%clk 0:02:04.1]} 23. b4 {[%clk 0:02:32.5]} 23... Nd7 {[%clk 0:02:00.5]} 24.
Nd5 {[%clk 0:02:19.3]} 24... Re8 {[%clk 0:01:56.6]} 25. bxc5 {[%clk 0:02:01.3]}
25... dxc5 {[%clk 0:01:54.2]} 26. Ne3 {[%clk 0:01:56.6]} 26... Qe7 {[%clk
0:01:49]} 27. b4 {[%clk 0:01:51.8]} 27... Rac8 {[%clk 0:01:38.2]} 28. bxc5
{[%clk 0:01:46.6]} 28... Nxc5 {[%clk 0:01:35.8]} 29. Qe2 {[%clk 0:01:35.9]}
29... Red8 {[%clk 0:01:27.5]} 30. Rcd1 {[%clk 0:01:33.9]} 30... Nb3 {[%clk
0:01:25.9]} 31. Qb2 {[%clk 0:01:28.3]} 31... Nd4 {[%clk 0:01:15.7]} 32. Nxd4
{[%clk 0:01:28.2]} 32... Rxd4 {[%clk 0:01:12]} 33. Nc2 {[%clk 0:01:26.9]} 33...
Ra4 {[%clk 0:01:12.1]} 34. Ra1 {[%clk 0:01:08.3]} 34... Rxa1 {[%clk 0:01:13]}
35. Nxa1 {[%clk 0:01:09.3]} 35... Qc5 {[%clk 0:01:11.3]} 36. Bg3 {[%clk
0:00:58.2]} 36... Qc3 {[%clk 0:01:11.4]} 37. Qb1 {[%clk 0:00:59.4]} 37... Qxa5
{[%clk 0:01:11.7]} 38. Nb3 {[%clk 0:00:59]} 38... Qb4 {[%clk 0:01:12.8]} 39. Re2
{[%clk 0:00:40.5]} 39... a5 {[%clk 0:00:54.6]} 40. Rb2 {[%clk 0:00:41.2]} 40...
Qc3 {[%clk 0:00:54.9]} 41. Kh2 {[%clk 0:00:21.7]} 41... Ba6 {[%clk 0:00:51.5]}
42. f3 {[%clk 0:00:11.7]} 42... Bf8 {[%clk 0:00:48.1]} 43. Be1 {[%clk
0:00:12.9]} 43... Qc6 {[%clk 0:00:43.8]} 44. Bxa5 {[%clk 0:00:13.4]} 44... b4
{[%clk 0:00:43.2]} 45. Nd2 {[%clk 0:00:12.8]} 45... Bc5 {[%clk 0:00:27.7]} 46.
Bxb4 {[%clk 0:00:12.5]} 46... Bd4 {[%clk 0:00:29.1]} 47. Ra2 {[%clk 0:00:10.7]}
47... Bb5 {[%clk 0:00:27.7]} 48. Nb3 {[%clk 0:00:11]} 48... Be3 {[%clk
0:00:28.4]} 49. Re2 {[%clk 0:00:10.9]} 49... Bf4+ {[%clk 0:00:28.9]} 50. g3
{[%clk 0:00:12.1]} 50... Bg5 {[%clk 0:00:30.2]} 51. Nc5 {[%clk 0:00:11.1]} 51...
Be7 {[%clk 0:00:29.7]} 52. Rc2 {[%clk 0:00:12.1]} 52... Bxd3 {[%clk 0:00:29.9]}
53. Nxd3 {[%clk 0:00:11.8]} 53... Qxc2+ {[%clk 0:00:31]} 54. Qxc2 {[%clk
0:00:13.7]} 54... Rxc2+ {[%clk 0:00:32.7]} 55. Kg1 {[%clk 0:00:15.1]} 55... Bxb4
{[%clk 0:00:29.2]} 56. Nxb4 {[%clk 0:00:17]} 56... Rd2 {[%clk 0:00:25.6]} 57.
Kf1 {[%clk 0:00:16.4]} 57... Rh2 {[%clk 0:00:24.9]} 58. h4 {[%clk 0:00:17]}
58... Rd2 {[%clk 0:00:26]} 59. Ke1 {[%clk 0:00:17.5]} 59... Rg2 {[%clk
0:00:27.2]} 60. g4 {[%clk 0:00:16.4]} 60... Rh2 {[%clk 0:00:28.3]} 61. Nd3
{[%clk 0:00:17.4]} 61... f6 {[%clk 0:00:28.5]} 62. Kf1 {[%clk 0:00:18.3]} 62...
Kf7 {[%clk 0:00:25.1]} 63. Kg1 {[%clk 0:00:19.4]} 63... Rd2 {[%clk 0:00:26.3]}
64. Nf2 {[%clk 0:00:19.8]} 64... Ke6 {[%clk 0:00:25.8]} 65. Kg2 {[%clk
0:00:20.9]} 65... Kd6 {[%clk 0:00:26]} 66. Kg3 {[%clk 0:00:22]} 66... g5 {[%clk
0:00:22.6]} 67. Nh3 {[%clk 0:00:16.1]} 67... Kc5 {[%clk 0:00:21.4]} 68. hxg5
{[%clk 0:00:15.1]} 68... hxg5 {[%clk 0:00:22.3]} 69. Nf2 {[%clk 0:00:14.4]}
69... Kd4 {[%clk 0:00:23.3]} 70. Nh1 {[%clk 0:00:13.6]} 70... Ke3 {[%clk
0:00:22.8]} 71. Kh3 {[%clk 0:00:15]} 71... Kxf3 {[%clk 0:00:23.7]} 72. Ng3
{[%clk 0:00:16.9]} 72... Kf4 {[%clk 0:00:20.8]} 73. Nh5+ {[%clk 0:00:17.6]}
73... Kxe4 {[%clk 0:00:20.7]} 74. Nxf6+ {[%clk 0:00:19.5]} 74... Kf3 {[%clk
0:00:21.3]} 75. Nh7 {[%clk 0:00:19.9]} 75... Kf4 {[%clk 0:00:22.1]} 76. Nf6
{[%clk 0:00:20.7]} 76... e4 {[%clk 0:00:19.2]} 77. Nh5+ {[%clk 0:00:21.5]} 77...
Kf3 {[%clk 0:00:19.7]} 78. Ng3 {[%clk 0:00:12]} 78... e3 {[%clk 0:00:19.6]} 79.
Ne2 {[%clk 0:00:06.6]} 79... Kxe2 {[%clk 0:00:19.2]} 80. Kg3 {[%clk 0:00:08]}
80... Kd3 {[%clk 0:00:21.1]} 81. Kf3 {[%clk 0:00:09.9]} 81... e2 {[%clk
0:00:22.7]} 82. Kf2 {[%clk 0:00:11.7]} 82... Rd1 {[%clk 0:00:24.1]} 83. Kg2
{[%clk 0:00:13]} 83... e1=Q {[%clk 0:00:24.9]} 84. Kh3 {[%clk 0:00:14.9]} 84...
Qe3+ {[%clk 0:00:24.4]} 85. Kh2 {[%clk 0:00:15]} 85... Rd2+ {[%clk 0:00:26.3]}
86. Kh1 {[%clk 0:00:16.7]} 86... Qe1# {[%clk 0:00:28.1]} 0-1

[Event "*** MasterClass Titled Tuesday Blitz"]
[Site "Chess.com"]
[Date "2017.08.01"]
[Round "6"]
[White "H16"]
[Black "TheLancer"]
[Result "1/2-1/2"]
[WhiteElo "2307"]
[BlackElo "2471"]
[TimeControl "180+2"]
[EndTime "14:23:52 PDT"]
[Termination "Game drawn by 50-move rule"]

1. b3 {[%clk 0:03:01.9]} 1... c5 {[%clk 0:02:51.6]} 2. Bb2 {[%clk 0:03:03.8]}
2... Nc6 {[%clk 0:02:51.4]} 3. Nf3 {[%clk 0:03:04.4]} 3... Nf6 {[%clk
0:02:51.9]} 4. e3 {[%clk 0:03:05.4]} 4... g6 {[%clk 0:02:50.3]} 5. d4 {[%clk
0:02:57.7]} 5... cxd4 {[%clk 0:02:46.6]} 6. exd4 {[%clk 0:02:58.7]} 6... d5
{[%clk 0:02:45.6]} 7. a3 {[%clk 0:02:54.8]} 7... Bg7 {[%clk 0:02:33.2]} 8. Bd3
{[%clk 0:02:55.9]} 8... O-O {[%clk 0:02:32]} 9. Nbd2 {[%clk 0:02:57.2]} 9... Kh8
{[%clk 0:02:13.9]} 10. O-O {[%clk 0:02:56.5]} 10... Bf5 {[%clk 0:02:14.6]} 11.
Qe2 {[%clk 0:01:45.2]} 11... Bxd3 {[%clk 0:02:02.8]} 12. Qxd3 {[%clk 0:01:46.3]}
12... Nd7 {[%clk 0:02:04.3]} 13. Rfe1 {[%clk 0:01:24.5]} 13... e6 {[%clk
0:02:02]} 14. Rad1 {[%clk 0:01:20.1]} 14... Rc8 {[%clk 0:01:40]} 15. h4 {[%clk
0:01:10.1]} 15... Qf6 {[%clk 0:01:26.2]} 16. Qe3 {[%clk 0:01:01.2]} 16... b5
{[%clk 0:01:12.9]} 17. h5 {[%clk 0:00:45.3]} 17... Qf5 {[%clk 0:00:58.9]} 18.
hxg6 {[%clk 0:00:39.8]} 18... Qxc2 {[%clk 0:00:43.9]} 19. Ba1 {[%clk 0:00:32]}
19... Qxg6 {[%clk 0:00:31.5]} 20. g3 {[%clk 0:00:28.2]} 20... Ne7 {[%clk
0:00:24.8]} 21. Kg2 {[%clk 0:00:26.5]} 21... Nf5 {[%clk 0:00:25.6]} 22. Qe2
{[%clk 0:00:27.8]} 22... Qg4 {[%clk 0:00:25]} 23. Qxb5 {[%clk 0:00:21.5]} 23...
Nb8 {[%clk 0:00:21.5]} 24. Qd3 {[%clk 0:00:22.1]} 24... Nc6 {[%clk 0:00:22]} 25.
Rh1 {[%clk 0:00:20.8]} 25... Kg8 {[%clk 0:00:20.7]} 26. Nf1 {[%clk 0:00:17.4]}
26... Qg6 {[%clk 0:00:20.9]} 27. Ne3 {[%clk 0:00:16.7]} 27... Nd6 {[%clk
0:00:19.4]} 28. Qe2 {[%clk 0:00:13.7]} 28... Ne4 {[%clk 0:00:18.7]} 29. Nh4
{[%clk 0:00:14.1]} 29... Qf6 {[%clk 0:00:19.6]} 30. Ng4 {[%clk 0:00:13.7]} 30...
Qe7 {[%clk 0:00:19.6]} 31. f3 {[%clk 0:00:10.9]} 31... Nf6 {[%clk 0:00:19]} 32.
Nxf6+ {[%clk 0:00:07.3]} 32... Qxf6 {[%clk 0:00:20.9]} 33. Qd3 {[%clk
0:00:05.5]} 33... Rfe8 {[%clk 0:00:20.3]} 34. f4 {[%clk 0:00:06.3]} 34... Na5
{[%clk 0:00:19.5]} 35. Rc1 {[%clk 0:00:06.5]} 35... Nb7 {[%clk 0:00:19.8]} 36.
Nf3 {[%clk 0:00:06.6]} 36... Qg6 {[%clk 0:00:19.6]} 37. Qxg6 {[%clk 0:00:06.5]}
37... hxg6 {[%clk 0:00:21.5]} 38. Ne5 {[%clk 0:00:07]} 38... Nd6 {[%clk
0:00:21.5]} 39. a4 {[%clk 0:00:07.7]} 39... Nf5 {[%clk 0:00:22.4]} 40. Kf3
{[%clk 0:00:06.4]} 40... Nd6 {[%clk 0:00:23.5]} 41. Bb2 {[%clk 0:00:06.7]} 41...
Ne4 {[%clk 0:00:24.8]} 42. Kg2 {[%clk 0:00:03.9]} 42... g5 {[%clk 0:00:21.8]}
43. fxg5 {[%clk 0:00:03.8]} 43... Bxe5 {[%clk 0:00:21.1]} 44. dxe5 {[%clk
0:00:05.7]} 44... Kg7 {[%clk 0:00:20.8]} 45. Rxc8 {[%clk 0:00:03.6]} 45... Rxc8
{[%clk 0:00:21.6]} 46. Rc1 {[%clk 0:00:05.5]} 46... Rb8 {[%clk 0:00:22.6]} 47.
Rc7 {[%clk 0:00:03.4]} 47... Rxb3 {[%clk 0:00:23]} 48. Bc1 {[%clk 0:00:04.8]}
48... Rxg3+ {[%clk 0:00:24]} 49. Kh2 {[%clk 0:00:05.6]} 49... Rc3 {[%clk
0:00:25.2]} 50. Rxc3 {[%clk 0:00:05.7]} 50... Nxc3 {[%clk 0:00:27.1]} 51. a5
{[%clk 0:00:06.7]} 51... Kg6 {[%clk 0:00:27.8]} 52. a6 {[%clk 0:00:07.7]} 52...
d4 {[%clk 0:00:20.5]} 53. Kg3 {[%clk 0:00:07.6]} 53... d3 {[%clk 0:00:21]} 54.
Kf3 {[%clk 0:00:07.8]} 54... Nd5 {[%clk 0:00:17.3]} 55. Bd2 {[%clk 0:00:07.6]}
55... Nc7 {[%clk 0:00:18.4]} 56. Ke4 {[%clk 0:00:08.2]} 56... Nxa6 {[%clk
0:00:19.7]} 57. Kxd3 {[%clk 0:00:09.5]} 57... Nc5+ {[%clk 0:00:21.3]} 58. Ke3
{[%clk 0:00:08.9]} 58... Nd7 {[%clk 0:00:18.1]} 59. Ke4 {[%clk 0:00:08.7]} 59...
Nb6 {[%clk 0:00:18.8]} 60. Be3 {[%clk 0:00:08.4]} 60... Nd5 {[%clk 0:00:17.6]}
61. Bxa7 {[%clk 0:00:08.8]} 61... Kxg5 {[%clk 0:00:18.7]} 62. Bd4 {[%clk
0:00:09.9]} 62... Kg4 {[%clk 0:00:19.9]} 63. Bb2 {[%clk 0:00:10.3]} 63... Ne7
{[%clk 0:00:20.3]} 64. Bc3 {[%clk 0:00:10.4]} 64... Nf5 {[%clk 0:00:21.8]} 65.
Bd2 {[%clk 0:00:07.4]} 65... Ng3+ {[%clk 0:00:22.2]} 66. Kd4 {[%clk 0:00:06.7]}
66... Kf5 {[%clk 0:00:22.2]} 67. Be1 {[%clk 0:00:05.7]} 67... Ne2+ {[%clk
0:00:20.9]} 68. Ke3 {[%clk 0:00:06]} 68... Nf4 {[%clk 0:00:19.8]} 69. Bg3 {[%clk
0:00:06.2]} 69... Ng6 {[%clk 0:00:21]} 70. Kd4 {[%clk 0:00:07.2]} 70... Ne7
{[%clk 0:00:22.6]} 71. Kc5 {[%clk 0:00:05.6]} 71... Ng6 {[%clk 0:00:21]} 72. Kd6
{[%clk 0:00:06.2]} 72... Nf4 {[%clk 0:00:16.4]} 73. Ke7 {[%clk 0:00:03.9]} 73...
Ng6+ {[%clk 0:00:13.7]} 74. Kxf7 {[%clk 0:00:03]} 74... Nxe5+ {[%clk 0:00:15.6]}
75. Ke7 {[%clk 0:00:03.7]} 75... Nc4 {[%clk 0:00:15.1]} 76. Bh2 {[%clk
0:00:03.9]} 76... Ne3 {[%clk 0:00:16.2]} 77. Kd6 {[%clk 0:00:04.6]} 77... Nd5
{[%clk 0:00:18.1]} 78. Bg3 {[%clk 0:00:05]} 78... Nf6 {[%clk 0:00:19.5]} 79. Bh2
{[%clk 0:00:05.6]} 79... Ne4+ {[%clk 0:00:19.6]} 80. Kc6 {[%clk 0:00:06.1]}
80... Ng5 {[%clk 0:00:21.3]} 81. Kc5 {[%clk 0:00:06.5]} 81... Nf3 {[%clk
0:00:22.5]} 82. Bb8 {[%clk 0:00:06.7]} 82... Ng5 {[%clk 0:00:22.6]} 83. Kd4
{[%clk 0:00:07.4]} 83... Nf7 {[%clk 0:00:24.5]} 84. Ke3 {[%clk 0:00:07.4]} 84...
Ne5 {[%clk 0:00:23.3]} 85. Bc7 {[%clk 0:00:05]} 85... Nd7 {[%clk 0:00:24.6]} 86.
Kf3 {[%clk 0:00:04.8]} 86... Nf6 {[%clk 0:00:25.9]} 87. Bb8 {[%clk 0:00:05.1]}
87... Ng4 {[%clk 0:00:23.2]} 88. Bc7 {[%clk 0:00:05.4]} 88... Ne5+ {[%clk
0:00:24.6]} 89. Ke3 {[%clk 0:00:06.3]} 89... Ng6 {[%clk 0:00:25.7]} 90. Bb8
{[%clk 0:00:07.1]} 90... Ne7 {[%clk 0:00:26.8]} 91. Kf3 {[%clk 0:00:07.9]} 91...
Kf6 {[%clk 0:00:24.7]} 92. Bc7 {[%clk 0:00:06.9]} 92... Kf5 {[%clk 0:00:22]} 93.
Bb8 {[%clk 0:00:07.9]} 93... Ng6 {[%clk 0:00:22.8]} 94. Bc7 {[%clk 0:00:08.5]}
94... Ne5+ {[%clk 0:00:24.7]} 95. Ke3 {[%clk 0:00:07.8]} 95... Nd7 {[%clk
0:00:26.6]} 96. Bd6 {[%clk 0:00:07.9]} 96... Nf6 {[%clk 0:00:28.5]} 97. Bb8
{[%clk 0:00:08.8]} 97... Ne8 {[%clk 0:00:27.7]} 98. Kd4 {[%clk 0:00:08.4]} 98...
Ng7 {[%clk 0:00:28.2]} 99. Ke3 {[%clk 0:00:07.8]} 99... Nh5 {[%clk 0:00:30.1]}
100. Bc7 {[%clk 0:00:08.1]} 100... Nf6 {[%clk 0:00:32]} 101. Bb8 {[%clk
0:00:08.3]} 101... Ng8 {[%clk 0:00:33]} 102. Kf3 {[%clk 0:00:08.5]} 102... Nh6
{[%clk 0:00:34.5]} 103. Ke3 {[%clk 0:00:09.4]} 103... Nf7 {[%clk 0:00:36.4]}
104. Kf3 {[%clk 0:00:10.4]} 104... Ne5+ {[%clk 0:00:38.3]} 105. Ke3 {[%clk
0:00:11.2]} 105... Nc6 {[%clk 0:00:40.2]} 106. Bc7 {[%clk 0:00:11.9]} 106... Nb4
{[%clk 0:00:41.8]} 107. Bb8 {[%clk 0:00:12.4]} 107... Kf6 {[%clk 0:00:43.2]}
108. Ke4 {[%clk 0:00:12.1]} 108... Nd5 {[%clk 0:00:44]} 109. Bd6 {[%clk
0:00:12.3]} 109... Nb6 {[%clk 0:00:43.4]} 110. Be5+ {[%clk 0:00:12.7]} 110...
Ke7 {[%clk 0:00:44]} 111. Bb8 {[%clk 0:00:14]} 111... Kd7 {[%clk 0:00:45.5]}
112. Bh2 {[%clk 0:00:14.7]} 112... Nd5 {[%clk 0:00:47.1]} 113. Bg3 {[%clk
0:00:15.7]} 113... Ke7 {[%clk 0:00:48]} 114. Bh2 {[%clk 0:00:16]} 114... Kf7
{[%clk 0:00:49.9]} 115. Bg3 {[%clk 0:00:17.1]} 115... Nf6+ {[%clk 0:00:51.8]}
116. Ke5 {[%clk 0:00:16.3]} 116... Nd7+ {[%clk 0:00:52.9]} 117. Ke4 {[%clk
0:00:15.7]} 117... Nf8 {[%clk 0:00:52.8]} 118. Bd6 {[%clk 0:00:14.6]} 118... Nh7
{[%clk 0:00:52.5]} 119. Bh2 {[%clk 0:00:13.9]} 119... Nf6+ {[%clk 0:00:53.9]}
120. Kd4 {[%clk 0:00:09.4]} 120... Kg6 {[%clk 0:00:53.4]} 121. Ke5 {[%clk
0:00:06.5]} 121... Kf7 {[%clk 0:00:55.3]} 122. Kd4 {[%clk 0:00:07.6]} 122... Ng4
{[%clk 0:00:56.5]} 123. Bb8 {[%clk 0:00:07.4]} 123... Kg6 {[%clk 0:00:58.1]}
124. Ke4 {[%clk 0:00:08.6]} 124... Kf7 {[%clk 0:00:58.8]} 125. Kf4 {[%clk
0:00:05.7]} 125... Nh6 {[%clk 0:01:00]} 126. Ke4 {[%clk 0:00:05.6]} 126... Nf5
{[%clk 0:01:01.9]} 1/2-1/2

[Event "*** MasterClass Titled Tuesday Blitz"]
[Site "Chess.com"]
[Date "2017.08.01"]
[Round "7"]
[White "Malev212"]
[Black "ka1ser64"]
[Result "1-0"]
[WhiteElo "2486"]
[BlackElo "2355"]
[TimeControl "180+2"]
[EndTime "14:27:42 PDT"]
[Termination "Malev212 won by resignation"]

1. Nf3 {[%clk 0:03:01.9]} 1... d5 {[%clk 0:03:00.8]} 2. g3 {[%clk 0:03:02.2]}
2... Nf6 {[%clk 0:03:01.9]} 3. Bg2 {[%clk 0:03:02.1]} 3... e6 {[%clk 0:03:03.4]}
4. O-O {[%clk 0:03:03.1]} 4... Be7 {[%clk 0:03:05.1]} 5. c4 {[%clk 0:03:02.5]}
5... O-O {[%clk 0:03:06.2]} 6. d4 {[%clk 0:03:01.4]} 6... dxc4 {[%clk
0:03:07.4]} 7. Na3 {[%clk 0:03:02]} 7... c5 {[%clk 0:03:05.8]} 8. Nxc4 {[%clk
0:03:01.4]} 8... Nc6 {[%clk 0:03:06.7]} 9. dxc5 {[%clk 0:02:59.1]} 9... Bxc5
{[%clk 0:03:07.2]} 10. Bg5 {[%clk 0:02:58.2]} 10... Be7 {[%clk 0:02:55.6]} 11.
Nfe5 {[%clk 0:02:55.3]} 11... Nd5 {[%clk 0:02:52.2]} 12. Bxe7 {[%clk 0:02:54.4]}
12... Ncxe7 {[%clk 0:02:51.3]} 13. e4 {[%clk 0:02:52.7]} 13... Nf6 {[%clk
0:02:49.2]} 14. Qd6 {[%clk 0:02:50.8]} 14... b5 {[%clk 0:02:38.4]} 15. Qxd8
{[%clk 0:02:29]} 15... Rxd8 {[%clk 0:02:38.9]} 16. Rfd1 {[%clk 0:02:29.6]} 16...
Bb7 {[%clk 0:02:36.4]} 17. Nd6 {[%clk 0:02:28.7]} 17... Bc6 {[%clk 0:02:34.5]}
18. Nexf7 {[%clk 0:02:25.6]} 18... Rf8 {[%clk 0:02:22.5]} 19. Ne5 {[%clk
0:02:19]} 19... Rad8 {[%clk 0:02:17.3]} 20. Rac1 {[%clk 0:02:03.2]} 20... Ba8
{[%clk 0:02:14.1]} 21. f3 {[%clk 0:02:02.7]} 21... a6 {[%clk 0:02:14.6]} 22. Bh3
{[%clk 0:01:59.7]} 1-0